[Event "Late-Titled-Tuesday-Blitz-April-02-2024"]
[Site "Chess.com"]
[Date "2024.04.02"]
[Round "1"]
[White "cthake"]
[Black "HeroWilczek"]
[Result "0-1"]
[WhiteElo "1809"]
[BlackElo "2548"]
[TimeControl "180+1"]
[EndTime "14:07:50 PDT"]
[Termination "HeroWilczek won by resignation"]

1. e4 {[%clk 0:02:58.7]} 1... d5 {[%clk 0:02:55.9]} 2. exd5 {[%clk 0:02:57.7]}
2... Nf6 {[%clk 0:02:55.7]} 3. d4 {[%clk 0:02:55.3]} 3... Bg4 {[%clk 0:02:54.4]}
4. Nf3 {[%clk 0:02:52.9]} 4... Nxd5 {[%clk 0:02:52.9]} 5. Be2 {[%clk 0:02:52.7]}
5... e6 {[%clk 0:02:52.6]} 6. O-O {[%clk 0:02:52.6]} 6... Be7 {[%clk 0:02:53.2]}
7. h3 {[%clk 0:02:52.5]} 7... Bh5 {[%clk 0:02:53.1]} 8. c4 {[%clk 0:02:52.3]}
8... Nf6 {[%clk 0:02:52.4]} 9. Nc3 {[%clk 0:02:51.6]} 9... O-O {[%clk
0:02:52.6]} 10. Bf4 {[%clk 0:02:50.5]} 10... Nbd7 {[%clk 0:02:51.8]} 11. Qd2
{[%clk 0:02:41.1]} 11... c6 {[%clk 0:02:51.1]} 12. a3 {[%clk 0:02:38.6]} 12...
Bg6 {[%clk 0:02:45.5]} 13. b4 {[%clk 0:02:36.2]} 13... a5 {[%clk 0:02:44.9]} 14.
Ne5 {[%clk 0:02:29.1]} 14... axb4 {[%clk 0:02:41.8]} 15. axb4 {[%clk 0:02:28.5]}
15... Bxb4 {[%clk 0:02:41.5]} 16. Nxg6 {[%clk 0:02:25.1]} 16... hxg6 {[%clk
0:02:41.1]} 17. Rxa8 {[%clk 0:02:23.5]} 17... Qxa8 {[%clk 0:02:41.3]} 18. Qb2
{[%clk 0:02:16.9]} 18... Bxc3 {[%clk 0:02:25.5]} 19. Qxc3 {[%clk 0:02:16.2]}
19... Ne4 {[%clk 0:02:26.2]} 20. Qb3 {[%clk 0:02:12.3]} 20... g5 {[%clk
0:02:19.1]} 21. Be3 {[%clk 0:02:02.5]} 21... f5 {[%clk 0:02:03.1]} 22. Bd3
{[%clk 0:02:00.8]} 22... Ndf6 {[%clk 0:01:57.2]} 23. d5 {[%clk 0:01:49]} 23...
cxd5 {[%clk 0:01:50.8]} 24. cxd5 {[%clk 0:01:48.9]} 24... Nxd5 {[%clk 0:01:28]}
25. Bxe4 {[%clk 0:01:42.7]} 25... fxe4 {[%clk 0:01:28.9]} 26. Bxg5 {[%clk
0:01:42.3]} 26... Qa6 {[%clk 0:01:25.1]} 27. Rb1 {[%clk 0:01:37.5]} 27... Qe2
{[%clk 0:01:15.1]} 28. Bh4 {[%clk 0:01:32]} 28... b6 {[%clk 0:01:09.5]} 29. Qg3
{[%clk 0:01:20.8]} 29... Qd3 {[%clk 0:01:00.8]} 30. Rb3 {[%clk 0:01:17]} 30...
Qxg3 {[%clk 0:00:58.8]} 31. Bxg3 {[%clk 0:01:15.8]} 31... Rc8 {[%clk 0:00:55.4]}
32. Be5 {[%clk 0:01:07.5]} 32... Rc4 {[%clk 0:00:53]} 33. Kf1 {[%clk 0:01:03.6]}
33... Kf7 {[%clk 0:00:51.2]} 34. Rb2 {[%clk 0:00:55.9]} 34... g6 {[%clk
0:00:44.7]} 35. Ke2 {[%clk 0:00:55.9]} 35... Ra4 {[%clk 0:00:39.9]} 36. f3
{[%clk 0:00:48.1]} 36... exf3+ {[%clk 0:00:39.9]} 37. Kxf3 {[%clk 0:00:46.6]}
37... Ke7 {[%clk 0:00:36.4]} 38. Kf2 {[%clk 0:00:41.2]} 38... Kd7 {[%clk
0:00:35.9]} 39. Rc2 {[%clk 0:00:37.7]} 39... b5 {[%clk 0:00:34.9]} 40. g4 {[%clk
0:00:33.5]} 40... b4 {[%clk 0:00:35]} 41. Rc4 {[%clk 0:00:26.3]} 41... Ra2+
{[%clk 0:00:33.1]} 42. Kf3 {[%clk 0:00:23.7]} 42... b3 {[%clk 0:00:33.4]} 43.
Rc1 {[%clk 0:00:17.7]} 43... Nb4 {[%clk 0:00:25.7]} 44. h4 {[%clk 0:00:15.7]}
44... Ke7 {[%clk 0:00:20.4]} 45. h5 {[%clk 0:00:14.4]} 45... gxh5 {[%clk
0:00:18.2]} 46. gxh5 {[%clk 0:00:14.6]} 46... Nd3 {[%clk 0:00:18.8]} 47. Rd1
{[%clk 0:00:13.1]} 47... Nxe5+ {[%clk 0:00:18.6]} 48. Ke4 {[%clk 0:00:12]} 48...
Nf7 {[%clk 0:00:18]} 49. Kd4 {[%clk 0:00:10.3]} 49... Rh2 {[%clk 0:00:18.5]} 50.
Kc3 {[%clk 0:00:09.7]} 50... Rxh5 {[%clk 0:00:19]} 51. Kxb3 {[%clk 0:00:09.9]}
51... Rd5 {[%clk 0:00:19.6]} 52. Re1 {[%clk 0:00:09.1]} 52... Kd6 {[%clk
0:00:20]} 53. Kc4 {[%clk 0:00:09.2]} 53... Ne5+ {[%clk 0:00:20.1]} 54. Kb4
{[%clk 0:00:08.5]} 54... Nd3+ {[%clk 0:00:20.2]} 0-1

[Event "Late-Titled-Tuesday-Blitz-April-02-2024"]
[Site "Chess.com"]
[Date "2024.04.02"]
[Round "1"]
[White "AllStarShark"]
[Black "dropstoneDP"]
[Result "1/2-1/2"]
[WhiteElo "2526"]
[BlackElo "2975"]
[TimeControl "180+1"]
[EndTime "14:07:53 PDT"]
[Termination "Game drawn by repetition"]

1. c4 {[%clk 0:02:57.4]} 1... e5 {[%clk 0:01:14.5]} 2. g3 {[%clk 0:02:53.2]}
2... c6 {[%clk 0:01:13.3]} 3. d4 {[%clk 0:02:45.3]} 3... e4 {[%clk 0:01:10.4]}
4. Nc3 {[%clk 0:02:40.9]} 4... d5 {[%clk 0:01:09.6]} 5. Bg2 {[%clk 0:02:31.5]}
5... Bb4 {[%clk 0:01:06.7]} 6. Qb3 {[%clk 0:02:29.1]} 6... Na6 {[%clk
0:00:57.7]} 7. cxd5 {[%clk 0:02:14]} 7... cxd5 {[%clk 0:00:57.7]} 8. a3 {[%clk
0:02:02.7]} 8... Bxc3+ {[%clk 0:00:51.6]} 9. Qxc3 {[%clk 0:02:03.6]} 9... Nf6
{[%clk 0:00:49.8]} 10. Bg5 {[%clk 0:02:01.5]} 10... O-O {[%clk 0:00:47.9]} 11.
Nh3 {[%clk 0:01:55.5]} 11... h6 {[%clk 0:00:30.8]} 12. Bxf6 {[%clk 0:01:51.8]}
12... Qxf6 {[%clk 0:00:31.7]} 13. Nf4 {[%clk 0:01:48.1]} 13... Qd6 {[%clk
0:00:30.8]} 14. Qb3 {[%clk 0:01:34.4]} 14... Nc7 {[%clk 0:00:29.8]} 15. e3
{[%clk 0:01:29.7]} 15... Bd7 {[%clk 0:00:21.6]} 16. O-O {[%clk 0:01:28.6]} 16...
Bc6 {[%clk 0:00:19.8]} 17. Rfc1 {[%clk 0:01:25.2]} 17... Rfe8 {[%clk 0:00:19.7]}
18. Rc5 {[%clk 0:01:16.9]} 18... Ne6 {[%clk 0:00:16.4]} 19. Nxe6 {[%clk
0:01:13.3]} 19... fxe6 {[%clk 0:00:16.8]} 20. Rac1 {[%clk 0:01:08.8]} 20... Rf8
{[%clk 0:00:17]} 21. Bf1 {[%clk 0:01:07.2]} 21... Rf7 {[%clk 0:00:09.9]} 22. Bb5
{[%clk 0:01:02.8]} 22... Bxb5 {[%clk 0:00:10.4]} 23. Qxb5 {[%clk 0:01:00.5]}
23... Raf8 {[%clk 0:00:10.9]} 24. R1c2 {[%clk 0:00:58.3]} 24... Kh7 {[%clk
0:00:06.9]} 25. Rc8 {[%clk 0:00:52]} 25... Rxf2 {[%clk 0:00:04.4]} 26. Rxf2
{[%clk 0:00:38.6]} 26... Rxc8 {[%clk 0:00:04]} 27. Qxb7 {[%clk 0:00:38.8]} 27...
Rc7 {[%clk 0:00:03.4]} 28. Qb5 {[%clk 0:00:33.5]} 28... e5 {[%clk 0:00:03.5]}
29. Qe8 {[%clk 0:00:25]} 29... exd4 {[%clk 0:00:03.5]} 30. Rf8 {[%clk
0:00:24.9]} 30... Rc1+ {[%clk 0:00:02.5]} 31. Kg2 {[%clk 0:00:25.1]} 31... Rc2+
{[%clk 0:00:02.6]} 32. Kg1 {[%clk 0:00:23.5]} 32... Rc1+ {[%clk 0:00:02.7]} 33.
Kg2 {[%clk 0:00:23.6]} 33... Rc2+ {[%clk 0:00:03.3]} 34. Kh3 {[%clk 0:00:18.5]}
34... Qxf8 {[%clk 0:00:03.7]} 35. Qxf8 {[%clk 0:00:18.1]} 35... dxe3 {[%clk
0:00:02.3]} 36. Qf5+ {[%clk 0:00:18]} 36... Kh8 {[%clk 0:00:02.5]} 37. Qxd5
{[%clk 0:00:15.9]} 37... e2 {[%clk 0:00:03]} 38. Qxe4 {[%clk 0:00:15.9]} 38...
Rxb2 {[%clk 0:00:03.6]} 39. a4 {[%clk 0:00:14.5]} 39... Ra2 {[%clk 0:00:03.9]}
40. Kg4 {[%clk 0:00:12.9]} 40... Rxa4 {[%clk 0:00:03.8]} 41. Qxa4 {[%clk
0:00:09.9]} 41... e1=Q {[%clk 0:00:04.4]} 42. Qxa7 {[%clk 0:00:10]} 42... Qe6+
{[%clk 0:00:04.3]} 43. Kf3 {[%clk 0:00:08.9]} 43... Qh3 {[%clk 0:00:03.5]} 44.
Qb8+ {[%clk 0:00:06]} 44... Kh7 {[%clk 0:00:03.9]} 45. Qb1+ {[%clk 0:00:06.4]}
45... Kg8 {[%clk 0:00:04.4]} 46. Qb8+ {[%clk 0:00:06.1]} 46... Kh7 {[%clk
0:00:04.6]} 47. Qb1+ {[%clk 0:00:06.2]} 47... Kg8 {[%clk 0:00:05.3]} 48. Qb8+
{[%clk 0:00:06.1]} 48... Kf7 {[%clk 0:00:05.8]} 49. Qc7+ {[%clk 0:00:05.8]}
49... Kg8 {[%clk 0:00:05.9]} 50. Qb8+ {[%clk 0:00:05.6]} 1/2-1/2

[Event "Late-Titled-Tuesday-Blitz-April-02-2024"]
[Site "Chess.com"]
[Date "2024.04.02"]
[Round "1"]
[White "Groetzi"]
[Black "Bykov_Egor"]
[Result "1-0"]
[WhiteElo "2370"]
[BlackElo "2608"]
[TimeControl "180+1"]
[EndTime "14:07:57 PDT"]
[Termination "Groetzi won by resignation"]

1. e4 {[%clk 0:03:00]} 1... c5 {[%clk 0:02:59]} 2. Nf3 {[%clk 0:02:54.3]} 2...
e6 {[%clk 0:02:59]} 3. d4 {[%clk 0:02:49.3]} 3... cxd4 {[%clk 0:02:59.2]} 4.
Nxd4 {[%clk 0:02:50.2]} 4... Nf6 {[%clk 0:02:59.4]} 5. Nc3 {[%clk 0:02:42.1]}
5... Nc6 {[%clk 0:02:59.6]} 6. Ndb5 {[%clk 0:02:38.2]} 6... Bc5 {[%clk
0:02:58.7]} 7. Bf4 {[%clk 0:02:16.7]} 7... O-O {[%clk 0:02:45.9]} 8. Be2 {[%clk
0:02:05.9]} 8... e5 {[%clk 0:01:34.8]} 9. Bg5 {[%clk 0:02:01.1]} 9... a6 {[%clk
0:01:22]} 10. Nd6 {[%clk 0:01:49.1]} 10... Nd4 {[%clk 0:01:20.4]} 11. Nxc8
{[%clk 0:01:38.9]} 11... Rxc8 {[%clk 0:01:21.3]} 12. O-O {[%clk 0:01:29.6]}
12... h6 {[%clk 0:01:18.9]} 13. Bxf6 {[%clk 0:01:05.1]} 13... Qxf6 {[%clk
0:01:18.4]} 14. Nd5 {[%clk 0:01:05.8]} 14... Qg5 {[%clk 0:01:17.1]} 15. c3
{[%clk 0:01:04.6]} 15... Ne6 {[%clk 0:00:49]} 16. Kh1 {[%clk 0:00:58.2]} 16...
f5 {[%clk 0:00:46]} 17. exf5 {[%clk 0:00:56.3]} 17... Rxf5 {[%clk 0:00:41.3]}
18. Bf3 {[%clk 0:00:48.4]} 18... Rcf8 {[%clk 0:00:36.5]} 19. Qe2 {[%clk
0:00:44.7]} 19... e4 {[%clk 0:00:33.3]} 20. Qxe4 {[%clk 0:00:43.5]} 20... Bd6
{[%clk 0:00:22.3]} 21. Rad1 {[%clk 0:00:36.7]} 21... Re5 {[%clk 0:00:14.9]} 22.
Qc4 {[%clk 0:00:33.9]} 22... Rxf3 {[%clk 0:00:13.2]} 23. gxf3 {[%clk 0:00:34.8]}
23... Qh5 {[%clk 0:00:07.3]} 24. Qg4 {[%clk 0:00:33.1]} 24... Qf7 {[%clk
0:00:06.2]} 25. Rg1 {[%clk 0:00:30.3]} 25... Rg5 {[%clk 0:00:06.7]} 26. Qh3
{[%clk 0:00:30.5]} 26... Rf5 {[%clk 0:00:06.3]} 27. Nf6+ {[%clk 0:00:21.7]}
27... Qxf6 {[%clk 0:00:05.5]} 28. Rxd6 {[%clk 0:00:22.2]} 28... Rxf3 {[%clk
0:00:05.3]} 29. Qg2 {[%clk 0:00:22.7]} 29... Rxf2 {[%clk 0:00:05.2]} 30. Qg3
{[%clk 0:00:23]} 30... Rf3 {[%clk 0:00:05.5]} 31. Qg2 {[%clk 0:00:23.2]} 31...
Rf5 {[%clk 0:00:05.6]} 32. Rxd7 {[%clk 0:00:20.5]} 32... Rg5 {[%clk 0:00:05]}
33. Qd5 {[%clk 0:00:20.6]} 33... Rxg1+ {[%clk 0:00:05]} 34. Kxg1 {[%clk
0:00:20.7]} 34... Qg6+ {[%clk 0:00:05.5]} 35. Kf2 {[%clk 0:00:17.9]} 35... Kh8
{[%clk 0:00:04.7]} 36. Rd6 {[%clk 0:00:17.2]} 36... Qc2+ {[%clk 0:00:04.7]} 37.
Kg3 {[%clk 0:00:16.7]} 37... Ng5 {[%clk 0:00:04.2]} 38. Rd8+ {[%clk 0:00:16.5]}
38... Kh7 {[%clk 0:00:04.7]} 39. Qd3+ {[%clk 0:00:17.4]} 39... Ne4+ {[%clk
0:00:05.1]} 40. Kf3 {[%clk 0:00:17.1]} 40... Qxd3+ {[%clk 0:00:01.8]} 41. Rxd3
{[%clk 0:00:18]} 41... Nc5 {[%clk 0:00:02.2]} 42. Rd5 {[%clk 0:00:18.2]} 42...
Na4 {[%clk 0:00:02.5]} 43. Rd2 {[%clk 0:00:16.6]} 43... Nb6 {[%clk 0:00:03.1]}
44. Kg4 {[%clk 0:00:17.4]} 44... Nc4 {[%clk 0:00:03.5]} 45. Re2 {[%clk
0:00:17.8]} 45... Nd6 {[%clk 0:00:03.6]} 46. b3 {[%clk 0:00:18.2]} 46... Kg6
{[%clk 0:00:03.7]} 47. c4 {[%clk 0:00:18.8]} 47... Kf6 {[%clk 0:00:02.9]} 48. h4
{[%clk 0:00:17.4]} 48... g6 {[%clk 0:00:03.3]} 49. Rd2 {[%clk 0:00:17.8]} 49...
Ne4 {[%clk 0:00:02.5]} 50. Re2 {[%clk 0:00:18.3]} 50... Nc5 {[%clk 0:00:01.9]}
51. Rd2 {[%clk 0:00:18.1]} 51... Ke5 {[%clk 0:00:02.3]} 52. Rd5+ {[%clk
0:00:17.9]} 1-0

[Event "Late-Titled-Tuesday-Blitz-April-02-2024"]
[Site "Chess.com"]
[Date "2024.04.02"]
[Round "1"]
[White "Sina_Movahed"]
[Black "DeArron_Fox"]
[Result "1/2-1/2"]
[WhiteElo "2981"]
[BlackElo "2529"]
[TimeControl "180+1"]
[EndTime "14:08:03 PDT"]
[Termination "Game drawn by repetition"]

1. Nf3 {[%clk 0:03:00.9]} 1... d5 {[%clk 0:02:55]} 2. c4 {[%clk 0:03:00.4]} 2...
e6 {[%clk 0:02:54.7]} 3. g3 {[%clk 0:03:00.6]} 3... Nf6 {[%clk 0:02:54.3]} 4.
Bg2 {[%clk 0:03:01.2]} 4... Be7 {[%clk 0:02:54.8]} 5. O-O {[%clk 0:03:01.8]}
5... O-O {[%clk 0:02:55]} 6. d4 {[%clk 0:03:02.5]} 6... c6 {[%clk 0:02:55.5]} 7.
Qc2 {[%clk 0:03:02.7]} 7... b6 {[%clk 0:02:55.9]} 8. Nbd2 {[%clk 0:02:54.5]}
8... Ba6 {[%clk 0:02:39.3]} 9. a4 {[%clk 0:02:35.7]} 9... c5 {[%clk 0:02:21.9]}
10. b3 {[%clk 0:02:05.6]} 10... Nc6 {[%clk 0:02:15.8]} 11. Bb2 {[%clk
0:02:05.5]} 11... Rc8 {[%clk 0:02:13.3]} 12. Rad1 {[%clk 0:02:03.3]} 12... cxd4
{[%clk 0:01:45.2]} 13. Nxd4 {[%clk 0:02:02.4]} 13... Nxd4 {[%clk 0:01:45.4]} 14.
Bxd4 {[%clk 0:02:03.3]} 14... dxc4 {[%clk 0:01:45.7]} 15. Nxc4 {[%clk
0:02:04.2]} 15... Qc7 {[%clk 0:01:40.5]} 16. Rc1 {[%clk 0:01:55.3]} 16... Bxc4
{[%clk 0:01:23.7]} 17. bxc4 {[%clk 0:01:55]} 17... Nd7 {[%clk 0:01:13.3]} 18.
Rfd1 {[%clk 0:01:44.6]} 18... Bf6 {[%clk 0:01:06.1]} 19. e3 {[%clk 0:01:41.9]}
19... g6 {[%clk 0:00:31.5]} 20. Qb2 {[%clk 0:01:31.4]} 20... Be5 {[%clk
0:00:16.6]} 21. Qb5 {[%clk 0:01:17.9]} 21... Rfd8 {[%clk 0:00:08.9]} 22. h4
{[%clk 0:01:13.5]} 22... h5 {[%clk 0:00:08.2]} 23. Bf3 {[%clk 0:00:50.3]} 23...
Nc5 {[%clk 0:00:07.6]} 24. Kg2 {[%clk 0:00:48.6]} 24... a6 {[%clk 0:00:03.4]}
25. Qb4 {[%clk 0:00:48.7]} 25... Bd6 {[%clk 0:00:02.6]} 26. Qb1 {[%clk
0:00:22.8]} 26... Rb8 {[%clk 0:00:02.2]} 27. Rc2 {[%clk 0:00:19.5]} 27... Nxa4
{[%clk 0:00:02.4]} 28. g4 {[%clk 0:00:19.1]} 28... hxg4 {[%clk 0:00:02]} 29.
Bxg4 {[%clk 0:00:20]} 29... e5 {[%clk 0:00:02.4]} 30. Ba1 {[%clk 0:00:19.3]}
30... Nc5 {[%clk 0:00:02.7]} 31. Bf3 {[%clk 0:00:19.6]} 31... e4 {[%clk
0:00:02.9]} 32. Bg4 {[%clk 0:00:19.6]} 32... Be5 {[%clk 0:00:03.1]} 33. Rcd2
{[%clk 0:00:19.5]} 33... Rxd2 {[%clk 0:00:02.5]} 34. Rxd2 {[%clk 0:00:20.4]}
34... Bxa1 {[%clk 0:00:03.1]} 35. Qxa1 {[%clk 0:00:18.8]} 35... Rd8 {[%clk
0:00:04]} 36. Rd5 {[%clk 0:00:17.7]} 36... Rxd5 {[%clk 0:00:03.9]} 37. cxd5
{[%clk 0:00:18.6]} 37... Qd6 {[%clk 0:00:04.3]} 38. Qd4 {[%clk 0:00:19.2]} 38...
a5 {[%clk 0:00:03.8]} 39. h5 {[%clk 0:00:19.3]} 39... gxh5 {[%clk 0:00:04]} 40.
Bxh5 {[%clk 0:00:20.2]} 40... a4 {[%clk 0:00:04.4]} 41. Be2 {[%clk 0:00:19]}
41... a3 {[%clk 0:00:04.6]} 42. Bc4 {[%clk 0:00:19.7]} 42... Qg6+ {[%clk
0:00:03.1]} 43. Kf1 {[%clk 0:00:19.9]} 43... Qh5 {[%clk 0:00:03.4]} 44. d6
{[%clk 0:00:18.8]} 44... Qh1+ {[%clk 0:00:03.4]} 45. Ke2 {[%clk 0:00:19.3]}
45... Qf3+ {[%clk 0:00:04.1]} 46. Ke1 {[%clk 0:00:19.7]} 46... Qh1+ {[%clk
0:00:03.8]} 47. Kd2 {[%clk 0:00:20.3]} 47... Qb1 {[%clk 0:00:03]} 48. d7 {[%clk
0:00:18.8]} 48... Nxd7 {[%clk 0:00:02.1]} 49. Qxd7 {[%clk 0:00:19.7]} 49... Qb2+
{[%clk 0:00:02.3]} 50. Kd1 {[%clk 0:00:18.9]} 50... Qb1+ {[%clk 0:00:02.7]} 51.
Kd2 {[%clk 0:00:19.2]} 51... Qb2+ {[%clk 0:00:02.9]} 52. Kd1 {[%clk 0:00:08.5]}
52... Qb1+ {[%clk 0:00:03.4]} 53. Kd2 {[%clk 0:00:09]} 1/2-1/2

[Event "Late-Titled-Tuesday-Blitz-April-02-2024"]
[Site "Chess.com"]
[Date "2024.04.02"]
[Round "1"]
[White "esrosenberg"]
[Black "Kirill_Klukin"]
[Result "0-1"]
[WhiteElo "2452"]
[BlackElo "2812"]
[TimeControl "180+1"]
[EndTime "14:08:07 PDT"]
[Termination "Kirill_Klukin won by resignation"]

1. d4 {[%clk 0:03:00.9]} 1... Nf6 {[%clk 0:02:58.9]} 2. c4 {[%clk 0:03:00.9]}
2... Nc6 {[%clk 0:02:59]} 3. Nf3 {[%clk 0:02:54.8]} 3... e6 {[%clk 0:02:59.2]}
4. a3 {[%clk 0:02:54.7]} 4... d6 {[%clk 0:02:59.3]} 5. Nc3 {[%clk 0:02:55.2]}
5... g6 {[%clk 0:03:00]} 6. g3 {[%clk 0:02:55.1]} 6... Bg7 {[%clk 0:03:00.2]} 7.
Bg2 {[%clk 0:02:55.8]} 7... O-O {[%clk 0:03:01]} 8. O-O {[%clk 0:02:56.4]} 8...
e5 {[%clk 0:03:00.9]} 9. d5 {[%clk 0:02:51.7]} 9... Nb8 {[%clk 0:03:00.1]} 10.
b4 {[%clk 0:02:50]} 10... a5 {[%clk 0:02:59.9]} 11. Bb2 {[%clk 0:02:49]} 11...
Na6 {[%clk 0:02:59.2]} 12. Qb3 {[%clk 0:02:44.9]} 12... Bd7 {[%clk 0:02:53.8]}
13. Nd2 {[%clk 0:02:38.7]} 13... Qe7 {[%clk 0:02:53]} 14. h4 {[%clk 0:02:21.2]}
14... Rfc8 {[%clk 0:02:52.3]} 15. Nde4 {[%clk 0:02:20.2]} 15... Nxe4 {[%clk
0:02:22.6]} 16. Nxe4 {[%clk 0:02:21.1]} 16... b6 {[%clk 0:02:22.9]} 17. f4
{[%clk 0:02:05.8]} 17... Bf5 {[%clk 0:02:11.9]} 18. fxe5 {[%clk 0:02:02.9]}
18... Bxe5 {[%clk 0:02:10.3]} 19. Bxe5 {[%clk 0:01:59]} 19... Qxe5 {[%clk
0:02:09.8]} 20. Qf3 {[%clk 0:01:46.4]} 20... axb4 {[%clk 0:01:28.1]} 21. axb4
{[%clk 0:01:46]} 21... Qxe4 {[%clk 0:01:22.5]} 22. Qxe4 {[%clk 0:01:26.7]} 22...
Bxe4 {[%clk 0:01:22.9]} 23. Bxe4 {[%clk 0:01:27.3]} 23... Nxb4 {[%clk
0:01:23.5]} 24. Rab1 {[%clk 0:01:21.8]} 24... Na6 {[%clk 0:01:23.4]} 25. g4
{[%clk 0:01:18.9]} 25... Nc5 {[%clk 0:01:23.1]} 26. Bd3 {[%clk 0:01:15.2]} 26...
Ra3 {[%clk 0:01:20.6]} 27. Rf3 {[%clk 0:01:09.5]} 27... Re8 {[%clk 0:00:53.8]}
28. Rbf1 {[%clk 0:01:04.8]} 28... Re7 {[%clk 0:00:50.8]} 29. g5 {[%clk
0:01:05.3]} 29... Kg7 {[%clk 0:00:46.8]} 30. Kg2 {[%clk 0:00:59.5]} 30... Nd7
{[%clk 0:00:41.7]} 31. Kg3 {[%clk 0:00:45.4]} 31... Ne5 {[%clk 0:00:40.8]} 32.
Re3 {[%clk 0:00:45.8]} 32... h5 {[%clk 0:00:35.9]} 33. Rf6 {[%clk 0:00:30.7]}
33... Re8 {[%clk 0:00:31.3]} 34. Kg2 {[%clk 0:00:24.8]} 34... Rea8 {[%clk
0:00:29.6]} 35. Kg3 {[%clk 0:00:15]} 35... Ng4 {[%clk 0:00:20.1]} 36. Re7 {[%clk
0:00:11.6]} 36... Nxf6 {[%clk 0:00:20.1]} 37. gxf6+ {[%clk 0:00:12]} 37... Kxf6
{[%clk 0:00:20.5]} 38. Rxc7 {[%clk 0:00:12.7]} 38... Rd8 {[%clk 0:00:16.6]} 39.
Rc6 {[%clk 0:00:09.7]} 39... Rb3 {[%clk 0:00:16.8]} 40. Kf4 {[%clk 0:00:09.2]}
40... Ke7 {[%clk 0:00:16.7]} 41. Kg5 {[%clk 0:00:08.8]} 41... Rb2 {[%clk
0:00:11.6]} 42. Rc7+ {[%clk 0:00:08.2]} 42... Rd7 {[%clk 0:00:12.1]} 43. Rc8
{[%clk 0:00:08]} 43... Ra7 {[%clk 0:00:09.6]} 44. Kh6 {[%clk 0:00:05.5]} 44...
Rba2 {[%clk 0:00:08.7]} 45. Kg7 {[%clk 0:00:05]} 45... Ra1 {[%clk 0:00:06.3]}
46. Rf8 {[%clk 0:00:02.8]} 46... Rf1 {[%clk 0:00:06.9]} 47. Rb8 {[%clk
0:00:01.6]} 47... Kd7 {[%clk 0:00:05.3]} 48. Rxb6 {[%clk 0:00:01.5]} 48... Rf4
{[%clk 0:00:06]} 49. Rc6 {[%clk 0:00:01.5]} 49... Rxh4 {[%clk 0:00:06.4]} 50.
Rb6 {[%clk 0:00:01.1]} 50... Rf4 {[%clk 0:00:06.4]} 51. Rb8 {[%clk 0:00:01.2]}
51... h4 {[%clk 0:00:06.7]} 52. Rh8 {[%clk 0:00:01.2]} 52... Kc7 {[%clk
0:00:07.2]} 53. Kg8 {[%clk 0:00:01.2]} 53... Ra8+ {[%clk 0:00:07.1]} 54. Kg7
{[%clk 0:00:01.4]} 54... Rxh8 {[%clk 0:00:08]} 55. Kxh8 {[%clk 0:00:02.3]} 55...
h3 {[%clk 0:00:08.2]} 0-1

[Event "Late-Titled-Tuesday-Blitz-April-02-2024"]
[Site "Chess.com"]
[Date "2024.04.02"]
[Round "1"]
[White "zsizsi99"]
[Black "KuzubovYuriy"]
[Result "0-1"]
[WhiteElo "2498"]
[BlackElo "2919"]
[TimeControl "180+1"]
[EndTime "14:08:08 PDT"]
[Termination "KuzubovYuriy won by resignation"]

1. e4 {[%clk 0:03:00.9]} 1... e6 {[%clk 0:03:00]} 2. d4 {[%clk 0:02:59.8]} 2...
d5 {[%clk 0:03:00.7]} 3. exd5 {[%clk 0:03:00]} 3... exd5 {[%clk 0:03:00.9]} 4.
Nc3 {[%clk 0:03:00.7]} 4... c6 {[%clk 0:02:59.9]} 5. Bf4 {[%clk 0:03:00.6]} 5...
Bd6 {[%clk 0:02:56.9]} 6. Qd2 {[%clk 0:03:00.9]} 6... Bxf4 {[%clk 0:02:45.2]} 7.
Qxf4 {[%clk 0:03:00.4]} 7... Qf6 {[%clk 0:02:45.7]} 8. Qd2 {[%clk 0:02:57.6]}
8... Bf5 {[%clk 0:02:40.5]} 9. O-O-O {[%clk 0:02:57.6]} 9... Nd7 {[%clk
0:02:40.3]} 10. f3 {[%clk 0:02:44.3]} 10... h5 {[%clk 0:02:37.4]} 11. Re1+
{[%clk 0:02:34.4]} 11... Ne7 {[%clk 0:02:36.5]} 12. Qe3 {[%clk 0:02:33.6]} 12...
Qh6 {[%clk 0:02:31.8]} 13. f4 {[%clk 0:02:31.1]} 13... Qe6 {[%clk 0:02:30.2]}
14. Nf3 {[%clk 0:02:21.4]} 14... Qxe3+ {[%clk 0:02:08.1]} 15. Rxe3 {[%clk
0:02:21.5]} 15... Kf8 {[%clk 0:02:07.8]} 16. Bd3 {[%clk 0:02:19.4]} 16... Bxd3
{[%clk 0:02:06.9]} 17. cxd3 {[%clk 0:02:19.7]} 17... Nf5 {[%clk 0:02:05.9]} 18.
Re2 {[%clk 0:02:16.9]} 18... Re8 {[%clk 0:01:58.4]} 19. Ne5 {[%clk 0:01:59.8]}
19... Nb6 {[%clk 0:01:45.7]} 20. Rhe1 {[%clk 0:01:57.8]} 20... Rd8 {[%clk
0:01:35.9]} 21. Nf3 {[%clk 0:01:52.9]} 21... f6 {[%clk 0:01:35]} 22. Nd1 {[%clk
0:01:31.7]} 22... Nc8 {[%clk 0:01:31.2]} 23. g3 {[%clk 0:01:20.8]} 23... Kf7
{[%clk 0:01:25.9]} 24. b4 {[%clk 0:00:52.5]} 24... Ncd6 {[%clk 0:01:19.1]} 25.
Nc3 {[%clk 0:00:39.6]} 25... Rd7 {[%clk 0:01:09.5]} 26. a4 {[%clk 0:00:35.3]}
26... Re8 {[%clk 0:01:05.8]} 27. Kc2 {[%clk 0:00:34.6]} 27... Rxe2+ {[%clk
0:01:02.9]} 28. Rxe2 {[%clk 0:00:34.9]} 28... Re7 {[%clk 0:00:55.6]} 29. Rxe7+
{[%clk 0:00:34.9]} 29... Kxe7 {[%clk 0:00:56.4]} 30. b5 {[%clk 0:00:30.6]} 30...
cxb5 {[%clk 0:00:50.3]} 31. axb5 {[%clk 0:00:22.8]} 31... Ke6 {[%clk 0:00:50.3]}
32. Kb3 {[%clk 0:00:21.8]} 32... Ne3 {[%clk 0:00:45.9]} 33. Na4 {[%clk
0:00:13.5]} 33... b6 {[%clk 0:00:35.2]} 34. Nc3 {[%clk 0:00:13.7]} 34... Ndf5
{[%clk 0:00:33.3]} 35. Kb2 {[%clk 0:00:12.5]} 35... h4 {[%clk 0:00:20.2]} 36.
gxh4 {[%clk 0:00:11.9]} 36... Ng2 {[%clk 0:00:20]} 37. Kc1 {[%clk 0:00:12]}
37... Nxf4 {[%clk 0:00:18.8]} 38. Kd2 {[%clk 0:00:12.2]} 38... Ng2 {[%clk
0:00:19.1]} 39. Ne2 {[%clk 0:00:11.5]} 39... Ngxh4 {[%clk 0:00:17.9]} 40. Nf4+
{[%clk 0:00:11.8]} 40... Kd6 {[%clk 0:00:18.3]} 41. Nxh4 {[%clk 0:00:10.7]}
41... Nxh4 {[%clk 0:00:18.6]} 42. Nh5 {[%clk 0:00:11.1]} 42... Nf5 {[%clk
0:00:18.2]} 43. Kc3 {[%clk 0:00:10.3]} 43... Ke6 {[%clk 0:00:16.7]} 44. Nf4+
{[%clk 0:00:10.5]} 44... Kd6 {[%clk 0:00:17.2]} 45. Nh5 {[%clk 0:00:11.1]} 45...
Ke7 {[%clk 0:00:14.1]} 46. Nf4 {[%clk 0:00:11.2]} 46... Nd6 {[%clk 0:00:14.4]}
47. Nxd5+ {[%clk 0:00:10.9]} 47... Ke6 {[%clk 0:00:15]} 48. Nc7+ {[%clk
0:00:10.1]} 48... Kd7 {[%clk 0:00:15.1]} 49. Nd5 {[%clk 0:00:10.3]} 49... Nxb5+
{[%clk 0:00:15.4]} 50. Kc4 {[%clk 0:00:10.7]} 50... Nd6+ {[%clk 0:00:15.2]} 51.
Kb4 {[%clk 0:00:10.7]} 51... a5+ {[%clk 0:00:14.4]} 52. Ka4 {[%clk 0:00:09.9]}
52... Kc6 {[%clk 0:00:14.4]} 53. Nf4 {[%clk 0:00:10.1]} 53... g5 {[%clk
0:00:12.8]} 54. Nh5 {[%clk 0:00:09.3]} 54... f5 {[%clk 0:00:13.1]} 55. Nf6
{[%clk 0:00:08.4]} 55... f4 {[%clk 0:00:12.8]} 56. d5+ {[%clk 0:00:07.6]} 56...
Kc5 {[%clk 0:00:11.5]} 57. Nd7+ {[%clk 0:00:06.7]} 57... Kd4 {[%clk 0:00:11.8]}
58. Nxb6 {[%clk 0:00:07]} 58... f3 {[%clk 0:00:12]} 0-1